[Event "CZE-ch Open 2018"]
[Site "Ostrava"]
[Date "2018.05.03"]
[Round "6"]
[White "Gnida, Patrik"]
[Black "Jedlicka, Ales"]
[Result "1-0"]
[ECO "A34"]
[WhiteElo "2165"]
[BlackElo "2238"]
[Annotator "NA"]
[PlyCount "99"]
[EventDate "2018.??.??"]
[EventCountry "CZE"]
[SourceTitle "playchess.com"]
[Source "ChessBase"]
[SourceQuality "1"]
[TimeControl "40/5400+30:900+30"]

1. c4 {[%emt 0:03:16]} c5 {[%emt 0:00:32]} 2. Nc3 {[%emt 0:00:08]} g6 {[%emt 0:00:25]} 3. Nf3 {[%emt 0:00:26]} Bg7 {[%emt 0:00:20]} 4. g3 {[%emt 0:00:06]} Nc6 {[%emt 0:00:17] A34: Symmetrical English: 2 Nc3, lines with ...d5} 5. d3 {[%emt 0:00:04]} (5. Bg2 e5 6. d3 Nge7 7. Nd2 d6 8. Nf1 a6 9. Bg5 Rb8 10. a4 Be6 11. Bxe7 Nxe7 12. Ne3 h5 13. h4 O-O 14. Ned5 Nc6 15. e3 a5 16. O-O Nb4 17. Qd2 Qd7 18. Nxb4 cxb4 19. Ne4 Kh8 20. Ng5 Rbe8 21. Nxe6 {½-½ (21) Adhiban,B (2655)-Wei,Y (2743) Wijk aan Zee 2018}) 5... e6 {[%emt 0:00:15]} 6. Be3 {[%emt 0:02:19]} d6 $146 {[%emt 0:00:55]} ({Predecessor:} 6... Nge7 7. Bxc5 d5 8. Ba3 Qa5 9. Qd2 O-O 10. cxd5 Bxc3 11. Qxc3 Qxd5 {1-0 (20) Finkenzeller,A (2270)-Brown,T (2230) London,Canada 1995}) 7. Qd2 {[%emt 0:00:31]} Nd4 {[%emt 0:02:24]} 8. h4 {[%emt 0:02:30]} Nxf3+ {[%emt 0:00:26]} 9. exf3 {[%emt 0:00:02]} Ne7 {[%emt 0:02:07]} 10. d4 {[%emt 0:02:30]} cxd4 {[%emt 0:01:45]} 11. Bxd4 {[%emt 0:00:38]} e5 {[%emt 0:00:18]} 12. Be3 {[%emt 0:00:09]} Nf5 {[%emt 0:07:28]} 13. O-O-O {[%emt 0:00:28]} Be6 {[%emt 0:01:12]} 14. g4 {[%emt 0:04:52]} Nxe3 {[%emt 0:01:26]} 15. fxe3 {[%emt 0:00:01]} Qb6 {[%emt 0:02:43]} 16. Kb1 {[%emt 0:10:11]} O-O-O {[%emt 0:01:57]} 17. e4 {[%emt 0:01:01]} Kb8 {[%emt 0:03:22]} 18. h5 {[%emt 0:01:37]} Qb4 {[%emt 0:02:37]} 19. Rh2 {[%emt 0:15:51]} Rd7 {[%emt 0:03:09]} 20. Nb5 {[%emt 0:16:44]} Qxd2 {[%emt 0:12:45]} 21. Rhxd2 {[%emt 0:00:30]} gxh5 {[%emt 0:00:15]} 22. gxh5 {[%emt 0:00:14]} Bh6 {[%emt 0:00:59]} 23. Rxd6 {[%emt 0:01:29]} Rxd6 {[%emt 0:00:08]} 24. Rxd6 {[%emt 0:00:10]} Rg8 {[%emt 0:01:04]} 25. Kc2 {[%emt 0:08:54]} a6 {[%emt 0:02:32]} 26. Nc3 {[%emt 0:00:37]} Rg1 {[%emt 0:01:34]} 27. Rd1 {[%emt 0:02:47]} Rh1 {[%emt 0:00:48]} 28. Be2 {[%emt 0:00:07]} Rxh5 {[%emt 0:01:10]} 29. Rd8+ {[%emt 0:01:27]} Ka7 {[%emt 0:00:42]} 30. b3 {[%emt 0:01:56]} Be3 {[%emt 0:00:35]} 31. f4 {[%emt 0:00:39]} Rh2 {[%emt 0:04:50]} 32. f5 {[%emt 0:01:43]} Bb6 {[%emt 0:00:11]} 33. Rd2 {[%emt 0:03:30]} Bc8 {[%emt 0:00:32]} 34. Bd3 {[%emt 0:04:04]} Rxd2+ {[%emt 0:01:59]} 35. Kxd2 {[%emt 0:00:01]} Ba5 {[%emt 0:03:44]} 36. a3 {[%emt 0:00:16]} Bxc3+ {[%emt 0:02:36]} 37. Kxc3 {[%emt 0:00:01]} Kb6 {[%emt 0:00:34]} 38. b4 {[%emt 0:00:25]} Kc6 {[%emt 0:00:53]} 39. Kd2 {[%emt 0:00:24]} Kd6 {[%emt 0:04:05]} 40. Ke3 {[%emt 0:00:19]} Ke7 {[%emt 0:15:35]} 41. Kf3 {[%emt 0:15:58]} Kf6 {[%emt 0:06:07]} 42. Kg4 {[%emt 0:00:10]} Bd7 {[%emt 0:02:10]} 43. b5 {[%emt 0:01:12]} axb5 {[%emt 0:00:20]} 44. cxb5 {[%emt 0:00:00]} b6 {[%emt 0:00:37]} 45. Bc4 {[%emt 0:00:48]} Be8 {[%emt 0:09:12]} 46. a4 {[%emt 0:01:32]} Ke7 {[%emt 0:00:45]} 47. Kg5 {[%emt 0:00:59]} Kd6 {[%emt 0:11:14]} 48. Kh6 {[%emt 0:00:49]} Kc5 {[%emt 0:00:17]} 49. Bd5 {[%emt 0:00:04]} Kb4 {[%emt 0:00:29]} 50. Bc6 {[%emt 0:00:15]} 1-0

[Event "CZE-ch Open 2018"]
[Site "Ostrava"]
[Date "2018.05.03"]
[Round "6"]
[White "Sramek, Vojtech"]
[Black "Vystrcil, Martin"]
[Result "0-1"]
[ECO "E95"]
[WhiteElo "2145"]
[BlackElo "2146"]
[Annotator "NA"]
[PlyCount "82"]
[EventDate "2018.??.??"]
[EventCountry "CZE"]
[SourceTitle "playchess.com"]
[Source "ChessBase"]
[SourceQuality "1"]
[TimeControl "40/5400+30:900+30"]

1. Nf3 {[%emt 0:00:00]} Nf6 {[%emt 0:00:15]} 2. c4 {[%emt 0:00:22]} g6 {[%emt 0:00:21]} 3. Nc3 {[%emt 0:01:13]} Bg7 {[%emt 0:00:22]} 4. d4 {[%emt 0:01:43]} O-O {[%emt 0:01:38]} 5. e4 {[%emt 0:01:11]} d6 {[%emt 0:00:19]} 6. Be2 {[%emt 0:00:06]} Nbd7 {[%emt 0:05:14]} 7. O-O {[%emt 0:00:38]} e5 {[%emt 0:00:25]} 8. Re1 {[%emt 0:03:42]} a5 {[%emt 0:05:19]} 9. Bf1 {[%emt 0:03:31]} c6 {[%emt 0:06:06]} 10. Rb1 {[%emt 0:10:48]} Qc7 {[%emt 0:03:49]} 11. dxe5 $146 {[%emt 0:12:30] E95: King's Indian: Classical: 7...Nbd7 8 Re1} ({Predecessor:} 11. a3 Ne8 12. Be3 f5 13. exf5 gxf5 14. dxe5 dxe5 15. Ng5 Nb6 16. Bc5 h6 17. Bxf8 Bxf8 18. c5 Bxc5 {1-0 (35) Jedynak,R (2341)-Adamowicz,K (2134) Krakow 2017}) 11... dxe5 {[%emt 0:01:25]} 12. a3 {[%emt 0:04:00]} Nc5 {[%emt 0:08:13]} 13. b4 {[%emt 0:03:12]} Rd8 {[%emt 0:01:00]} 14. Qc2 {[%emt 0:01:01]} axb4 {[%emt 0:00:36]} 15. axb4 {[%emt 0:00:30]} Ne6 {[%emt 0:01:53]} 16. c5 {[%emt 0:12:40]} Nd4 {[%emt 0:06:31]} 17. Nxd4 {[%emt 0:01:51]} exd4 {[%emt 0:01:32]} 18. Nd1 {[%emt 0:00:31]} Ng4 {[%emt 0:05:47]} 19. f4 {[%emt 0:08:23]} Be6 {[%emt 0:12:36]} 20. Bd3 {[%emt 0:03:23]} Ne3 {[%emt 0:11:52]} 21. Qf2 {[%emt 0:06:36]} Ra2 {[%emt 0:11:15]} 22. Rb2 {[%emt 0:01:57]} Ra3 {[%emt 0:00:37]} 23. Rd2 {[%emt 0:02:06]} Rb3 {[%emt 0:02:36]} 24. e5 {[%emt 0:03:50]} Ng4 {[%emt 0:01:36]} 25. Qf3 {[%emt 0:05:04]} Rxb4 {[%emt 0:04:15]} 26. h3 {[%emt 0:02:07]} Nh6 {[%emt 0:01:50]} 27. Nf2 {[%emt 0:01:28]} Nf5 {[%emt 0:01:19]} 28. Ne4 {[%emt 0:00:37]} Bd5 {[%emt 0:00:23]} 29. g4 {[%emt 0:01:07]} Ne3 {[%emt 0:00:32]} 30. Rb2 {[%emt 0:01:19]} Rxb2 {[%emt 0:01:09]} 31. Bxb2 {[%emt 0:00:05]} Qa5 {[%emt 0:00:30]} 32. Re2 {[%emt 0:01:24]} Qb4 {[%emt 0:02:34]} 33. Bxd4 {[%emt 0:01:08]} Bxe4 {[%emt 0:00:26]} 34. Bxe4 {[%emt 0:01:42]} Rxd4 {[%emt 0:00:51]} 35. Qxe3 {[%emt 0:00:55]} Qc4 {[%emt 0:02:12]} 36. Kg2 {[%emt 0:01:53]} Bf8 {[%emt 0:00:21]} 37. Bf3 {[%emt 0:01:51]} Bxc5 {[%emt 0:00:41]} 38. e6 {[%emt 0:00:48]} fxe6 {[%emt 0:00:31]} 39. Qe5 {[%emt 0:00:41]} Rxf4 {[%emt 0:00:29]} 40. Qb8+ {[%emt 0:01:00]} Rf8 $19 {[%emt 0:15:13]} 41. Qxb7 {[%emt 0:00:00]} Qc1 {[%emt 0:00:00]} 0-1

[Event "CZE-ch Open 2018"]
[Site "Ostrava"]
[Date "2018.05.03"]
[Round "6"]
[White "Mladek, Richard"]
[Black "Lechtynsky, Jiri"]
[Result "1/2-1/2"]
[ECO "C34"]
[WhiteElo "2136"]
[BlackElo "2349"]
[Annotator "ChessBase"]
[PlyCount "117"]
[EventDate "2018.??.??"]
[EventCountry "CZE"]
[SourceTitle "playchess.com"]
[Source "ChessBase"]
[SourceQuality "1"]
[TimeControl "40/5400+30:900+30"]

1. e4 {[%emt 0:00:00]} e5 {[%emt 0:02:43]} 2. f4 {[%emt 0:01:09]} exf4 {[%emt 0:00:09]} 3. Nf3 {[%emt 0:00:06]} d6 {[%emt 0:00:04]} 4. Bc4 {[%emt 0:02:25]} h6 {[%emt 0:06:15]} 5. O-O {[%emt 0:01:06]} g5 {[%emt 0:02:40]} 6. d4 {[%emt 0:01:01]} Nc6 {[%emt 0:05:32]} 7. c3 {[%emt 0:01:41]} Bg7 {[%emt 0:02:09]} 8. Qb3 {[%emt 0:06:08]} Qd7 {[%emt 0:08:40]} 9. Bd3 {[%emt 0:11:32]} a6 {[%emt 0:06:17]} 10. Nbd2 {[%emt 0:03:39]} Nge7 {[%emt 0:04:14]} 11. a4 {[%emt 0:04:55]} Ng6 {[%emt 0:03:13]} 12. Qc2 {[%emt 0:05:06]} Rg8 {[%emt 0:08:55]} 13. Nc4 {[%emt 0:02:26]} Bh8 {[%emt 0:14:22]} 14. Kh1 {[%emt 0:03:04]} Qe7 {[%emt 0:02:11]} 15. b4 {[%emt 0:08:50]} g4 {[%emt 0:05:36]} 16. Ng1 {[%emt 0:02:58]} f3 {[%emt 0:03:33]} 17. gxf3 {[%emt 0:01:27]} gxf3 {[%emt 0:01:22]} 18. Nxf3 {[%emt 0:01:55]} Nh4 {[%emt 0:00:01]} 19. Nxh4 {[%emt 0:06:23]} Qxh4 {[%emt 0:00:03]} 20. Be3 {[%emt 0:01:07]} Bh3 {[%emt 0:02:49]} 21. Rf4 {[%emt 0:02:52]} Qe7 {[%emt 0:04:06]} 22. Bf1 {[%emt 0:01:09]} Bd7 {[%emt 0:01:11]} 23. Qf2 {[%emt 0:03:00]} Nd8 {[%emt 0:01:55]} 24. Bg2 {[%emt 0:04:13]} Ne6 {[%emt 0:01:03]} 25. Rf3 {[%emt 0:00:19]} Ng5 {[%emt 0:01:54]} 26. Bxg5 {[%emt 0:00:06]} hxg5 {[%emt 0:01:23]} 27. Ne3 {[%emt 0:04:24]} g4 {[%emt 0:00:09]} 28. Rf4 {[%emt 0:00:32]} g3 {[%emt 0:03:05]} 29. hxg3 {[%emt 0:00:27]} Qg5 {[%emt 0:00:54]} 30. Rf1 {[%emt 0:03:45]} Qxg3 {[%emt 0:03:57]} 31. Rxf7 {[%emt 0:00:25]} Qxf2 {[%emt 0:01:00]} 32. R1xf2 {[%emt 0:00:47]} O-O-O {[%emt 0:00:02]} 33. Nd5 {[%emt 0:03:11]} Kb8 {[%emt 0:00:33]} 34. Re7 {[%emt 0:01:50]} Rg7 {[%emt 0:01:03]} 35. Rxg7 {[%emt 0:05:03]} Bxg7 {[%emt 0:00:01]} 36. Rf7 {[%emt 0:00:54]} Bh8 {[%emt 0:02:10]} 37. Rh7 {[%emt 0:01:23]} Bxa4 {[%emt 0:00:57]} 38. Nxc7 {[%emt 0:01:23]} Bb3 {[%emt 0:01:57]} 39. Bh3 {[%emt 0:03:26]} Bf6 {[%emt 0:00:28]} 40. Nd5 {[%emt 0:02:57]} Bxd5 {[%emt 0:15:06]} 41. exd5 {[%emt 0:15:05]} Rh8 {[%emt 0:00:00]} 42. Rxh8+ {[%emt 0:00:00]} Bxh8 {[%emt 0:00:00]} 43. Kg2 {[%emt 0:00:00]} Kc7 {[%emt 0:00:00]} 44. Kf3 {[%emt 0:00:00]} Bg7 {[%emt 0:00:00]} 45. Ke4 {[%emt 0:00:00]} b5 {[%emt 0:00:00]} 46. Kf5 {[%emt 0:00:00]} Bh6 {[%emt 0:00:00]} 47. Ke4 {[%emt 0:00:00]} Bd2 {[%emt 0:00:00]} 48. Kd3 {[%emt 0:00:00]} Be1 {[%emt 0:00:00]} 49. Kc2 {[%emt 0:00:00]} Kb6 {[%emt 0:00:00]} 50. Bf1 {[%emt 0:00:00]} Bf2 {[%emt 0:00:00]} 51. Kb3 {[%emt 0:00:00]} Be3 {[%emt 0:00:00]} 52. c4 {[%emt 0:00:00]} Bxd4 {[%emt 0:00:00]} 53. cxb5 {[%emt 0:00:00]} axb5 {[%emt 0:00:00]} 54. Bh3 {[%emt 0:00:00]} Be5 {[%emt 0:00:00]} 55. Bd7 {[%emt 0:00:00]} Bg3 {[%emt 0:00:00]} 56. Bc6 {[%emt 0:00:00]} Be1 {[%emt 0:00:00]} 57. Bd7 {[%emt 0:00:00]} Bh4 {[%emt 0:00:00]} 58. Bc6 {[%emt 0:00:00]} Bf6 {[%emt 0:00:00]} 59. Bd7 {[%emt 0:00:00]} 1/2-1/2

[Event "CZE-ch Open 2018"]
[Site "Ostrava"]
[Date "2018.05.03"]
[Round "6"]
[White "Bures, Martin"]
[Black "Skalsky, Alexandr"]
[Result "1/2-1/2"]
[ECO "A48"]
[WhiteElo "2100"]
[BlackElo "2207"]
[Annotator "NA"]
[PlyCount "40"]
[EventDate "2018.??.??"]
[EventCountry "CZE"]
[SourceTitle "playchess.com"]
[Source "ChessBase"]
[SourceQuality "1"]
[TimeControl "40/5400+30:900+30"]

1. d4 {[%emt 0:00:00]} Nf6 {[%emt 0:00:03]} 2. Nf3 {[%emt 0:00:00]} g6 {[%emt 0:00:02]} 3. c3 {[%emt 0:00:00]} Bg7 {[%emt 0:00:43]} 4. Bg5 {[%emt 0:00:00]} O-O {[%emt 0:06:05]} 5. Nbd2 {[%emt 0:04:54]} d5 {[%emt 0:01:21]} 6. e3 {[%emt 0:00:54]} b6 {[%emt 0:03:01]} 7. Bd3 {[%emt 0:03:46]} Bb7 {[%emt 0:01:12]} 8. O-O {[%emt 0:09:35]} Nbd7 {[%emt 0:01:30]} 9. Re1 {[%emt 0:04:39]} Ne4 {[%emt 0:14:18]} 10. Bh4 {[%emt 0:03:00]} Qe8 {[%emt 0:05:48]} 11. Qc2 {[%emt 0:07:49]} Nxd2 {[%emt 0:05:36]} 12. Qxd2 {[%emt 0:02:51]} f5 {[%emt 0:09:35]} 13. Bg3 {[%emt 0:05:09]} e5 {[%emt 0:00:38]} 14. Nxe5 {[%emt 0:01:24]} Nxe5 {[%emt 0:01:22]} 15. Bxe5 {[%emt 0:00:13]} Bxe5 {[%emt 0:00:02]} 16. dxe5 {[%emt 0:00:08]} Qxe5 {[%emt 0:00:11]} 17. g3 {[%emt 0:03:45]} Rad8 {[%emt 0:02:35]} 18. Bf1 {[%emt 0:04:03]} Rf6 {[%emt 0:08:07]} 19. Bg2 {[%emt 0:01:04]} Qe8 {[%emt 0:02:19]} 20. Rad1 {[%emt 0:01:19]} Rfd6 {[%emt 0:01:50]} 1/2-1/2

[Event "CZE-ch Open 2018"]
[Site "Ostrava"]
[Date "2018.05.03"]
[Round "6"]
[White "Kopriva, Martin"]
[Black "Bartos, Jan"]
[Result "1/2-1/2"]
[ECO "C02"]
[WhiteElo "2071"]
[BlackElo "2198"]
[Annotator "NA"]
[PlyCount "56"]
[EventDate "2018.??.??"]
[EventCountry "CZE"]
[SourceTitle "playchess.com"]
[Source "ChessBase"]
[SourceQuality "1"]
[TimeControl "40/5400+30:900+30"]

1. e4 {[%emt 0:00:00]} e6 {[%emt 0:00:06]} 2. d4 {[%emt 0:00:30]} d5 {[%emt 0:00:04]} 3. e5 {[%emt 0:01:27]} c5 {[%emt 0:00:49]} 4. c3 {[%emt 0:00:18]} Nc6 {[%emt 0:00:04]} 5. Nf3 {[%emt 0:01:19]} Bd7 {[%emt 0:00:11]} 6. a3 {[%emt 0:06:19]} Nge7 {[%emt 0:01:30]} 7. Be2 {[%emt 0:10:02]} cxd4 {[%emt 0:04:29]} 8. cxd4 {[%emt 0:00:12]} Nf5 {[%emt 0:00:04]} 9. g4 {[%emt 0:04:41]} Nh4 {[%emt 0:01:49]} 10. Nxh4 {[%emt 0:02:25]} Qxh4 {[%emt 0:00:03]} 11. Be3 {[%emt 0:07:34]} Qd8 {[%emt 0:13:31]} 12. Nc3 {[%emt 0:02:03]} Rc8 {[%emt 0:07:25]} 13. O-O {[%emt 0:05:52]} Na5 {[%emt 0:08:25]} 14. f4 {[%emt 0:06:56]} Be7 {[%emt 0:03:39]} 15. f5 {[%emt 0:07:38]} Bg5 {[%emt 0:06:26]} 16. Bxg5 {[%emt 0:02:28]} Qxg5 {[%emt 0:00:05]} 17. Nb5 {[%emt 0:12:28]} Bxb5 {[%emt 0:07:35]} 18. Bxb5+ {[%emt 0:00:05]} Nc6 {[%emt 0:00:19]} 19. fxe6 {[%emt 0:01:36]} Qe3+ {[%emt 0:00:23]} 20. Kh1 {[%emt 0:00:47]} fxe6 {[%emt 0:00:54]} 21. Qf3 {[%emt 0:06:37]} Qxf3+ {[%emt 0:01:31]} 22. Rxf3 {[%emt 0:00:05]} Rf8 {[%emt 0:00:03]} 23. Raf1 {[%emt 0:00:40]} Rxf3 {[%emt 0:00:20]} 24. Rxf3 {[%emt 0:00:06]} Ke7 {[%emt 0:00:04]} 25. Rc3 {[%emt 0:02:10]} Kd7 {[%emt 0:00:12]} 26. Kg1 {[%emt 0:03:54]} a6 {[%emt 0:00:15]} 27. Bxc6+ {[%emt 0:00:10]} Rxc6 {[%emt 0:00:05]} 28. Kf2 {[%emt 0:05:54]} Rxc3 {[%emt 0:26:40]} 1/2-1/2

[Event "CZE-ch Open 2018"]
[Site "Ostrava"]
[Date "2018.05.03"]
[Round "6"]
[White "Havelka, Ondrej"]
[Black "Vybiral, Zdenek"]
[Result "1/2-1/2"]
[ECO "A80"]
[WhiteElo "2041"]
[BlackElo "2261"]
[Annotator "ChessBase"]
[PlyCount "122"]
[EventDate "2018.??.??"]
[EventCountry "CZE"]
[SourceTitle "playchess.com"]
[Source "ChessBase"]
[SourceQuality "1"]
[TimeControl "40/5400+30:900+30"]

1. d4 {[%emt 0:00:00]} f5 {[%emt 0:03:17]} 2. Nc3 {[%emt 0:00:54]} d5 {[%emt 0:01:25]} 3. Bf4 {[%emt 0:00:18]} e6 {[%emt 0:00:10]} 4. e3 {[%emt 0:00:19]} Nf6 {[%emt 0:00:24]} 5. Nb5 {[%emt 0:04:43]} Na6 {[%emt 0:00:55]} 6. c4 {[%emt 0:00:23]} c6 {[%emt 0:06:47]} 7. Nc3 {[%emt 0:00:18]} Nc7 {[%emt 0:00:19]} 8. Nf3 {[%emt 0:00:24]} Be7 {[%emt 0:00:12]} 9. Be2 {[%emt 0:01:17]} O-O {[%emt 0:00:06]} 10. O-O {[%emt 0:00:10]} Nce8 {[%emt 0:10:54]} 11. Ne5 {[%emt 0:03:30]} Nd6 {[%emt 0:00:21]} 12. c5 {[%emt 0:10:20]} Nf7 {[%emt 0:00:31]} 13. h4 {[%emt 0:02:46]} Nxe5 {[%emt 0:02:36]} 14. Bxe5 {[%emt 0:00:22]} Nd7 {[%emt 0:00:17]} 15. Bf4 {[%emt 0:09:22]} Bxh4 {[%emt 0:00:39]} 16. b4 {[%emt 0:00:49]} Bf6 {[%emt 0:03:25]} 17. b5 {[%emt 0:01:45]} Nxc5 {[%emt 0:14:38]} 18. Rc1 {[%emt 0:01:51]} Nd7 {[%emt 0:00:57]} 19. bxc6 {[%emt 0:00:07]} bxc6 {[%emt 0:00:09]} 20. Na4 {[%emt 0:00:30]} Nb6 {[%emt 0:09:15]} 21. Rxc6 {[%emt 0:07:47]} Nxa4 {[%emt 0:01:11]} 22. Qxa4 {[%emt 0:00:02]} Bd7 {[%emt 0:00:15]} 23. Bb5 {[%emt 0:00:01]} Bxc6 {[%emt 0:02:37]} 24. Bxc6 {[%emt 0:02:02]} Rc8 {[%emt 0:09:14]} 25. Bd7 {[%emt 0:00:12]} Qb6 {[%emt 0:00:05]} 26. Bxc8 {[%emt 0:01:40]} Rxc8 {[%emt 0:00:01]} 27. Qd7 {[%emt 0:00:31]} Rd8 {[%emt 0:00:44]} 28. Qa4 {[%emt 0:00:16]} Rc8 {[%emt 0:00:04]} 29. Qd7 {[%emt 0:00:06]} Qc6 {[%emt 0:05:31]} 30. Qxa7 {[%emt 0:01:21]} Ra8 {[%emt 0:00:18]} 31. Qc7 {[%emt 0:01:09]} Qxc7 {[%emt 0:00:08]} 32. Bxc7 {[%emt 0:00:04]} Rxa2 {[%emt 0:00:06]} 33. Rb1 {[%emt 0:00:07]} Ra6 {[%emt 0:12:05]} 34. Rb7 {[%emt 0:00:35]} Kf7 {[%emt 0:00:33]} 35. g3 {[%emt 0:00:57]} h6 {[%emt 0:05:24]} 36. Kg2 {[%emt 0:00:09]} g5 {[%emt 0:04:24]} 37. Kf3 {[%emt 0:00:21]} Kg6 {[%emt 0:00:21]} 38. Kg2 {[%emt 0:01:52]} h5 {[%emt 0:07:56]} 39. Kf3 {[%emt 0:03:06]} f4 {[%emt 0:01:04]} 40. gxf4 {[%emt 0:09:49]} g4+ {[%emt 0:15:07]} 41. Kg2 {[%emt 0:15:17]} h4 {[%emt 0:00:52]} 42. Be5 {[%emt 0:02:14]} h3+ {[%emt 0:00:00]} 43. Kg3 {[%emt 0:00:00]} Ra1 {[%emt 0:00:00]} 44. f5+ {[%emt 0:00:00]} Kg5 {[%emt 0:00:00]} 45. fxe6 {[%emt 0:00:00]} Bxe5+ {[%emt 0:00:00]} 46. dxe5 {[%emt 0:00:00]} Kf5 {[%emt 0:00:00]} 47. e7 {[%emt 0:00:00]} Ra8 {[%emt 0:00:00]} 48. Rd7 {[%emt 0:00:00]} Re8 {[%emt 0:00:00]} 49. Rxd5 {[%emt 0:00:00]} Rxe7 {[%emt 0:00:00]} 50. Rd8 {[%emt 0:00:00]} Rh7 {[%emt 0:00:00]} 51. Kh2 {[%emt 0:00:00]} Kxe5 {[%emt 0:00:00]} 52. Rf8 {[%emt 0:00:00]} Rh5 {[%emt 0:01:03]} 53. Rf4 {[%emt 0:00:00]} Rg5 {[%emt 0:01:33]} 54. Ra4 {[%emt 0:00:00]} Rg8 {[%emt 0:00:23]} 55. Kg3 {[%emt 0:00:43]} Rg7 {[%emt 0:00:28]} 56. Ra8 {[%emt 0:00:50]} Rh7 {[%emt 0:00:42]} 57. Ra1 {[%emt 0:00:26]} Kf5 {[%emt 0:01:11]} 58. Re1 {[%emt 0:00:22]} Re7 {[%emt 0:00:30]} 59. Ra1 {[%emt 0:01:05]} Rh7 {[%emt 0:00:32]} 60. Rb1 {[%emt 0:00:06]} Rh8 {[%emt 0:00:18]} 61. Ra1 {[%emt 0:03:00]} Ke5 1/2-1/2

[Event "CZE-ch Open 2018"]
[Site "Ostrava"]
[Date "2018.05.03"]
[Round "6"]
[White "Kana, Pavel"]
[Black "Toman, Jaroslav"]
[Result "0-1"]
[ECO "B22"]
[WhiteElo "2024"]
[BlackElo "2233"]
[Annotator "ChessBase"]
[PlyCount "142"]
[EventDate "2018.??.??"]
[EventCountry "CZE"]
[SourceTitle "playchess.com"]
[Source "ChessBase"]
[SourceQuality "1"]
[TimeControl "40/5400+30:900+30"]

1. e4 {[%emt 0:00:00]} c5 {[%emt 0:00:06]} 2. c3 {[%emt 0:00:34]} Nf6 {[%emt 0:00:44]} 3. e5 {[%emt 0:00:30]} Nd5 {[%emt 0:00:10]} 4. d4 {[%emt 0:00:35]} e6 {[%emt 0:04:28]} 5. Nf3 {[%emt 0:03:03]} cxd4 {[%emt 0:04:03]} 6. cxd4 {[%emt 0:00:08]} Nc6 {[%emt 0:00:28]} 7. Nc3 {[%emt 0:01:59]} Nxc3 {[%emt 0:01:43]} 8. bxc3 {[%emt 0:00:03]} d5 {[%emt 0:01:45]} 9. exd6 {[%emt 0:02:44]} Bxd6 {[%emt 0:00:11]} 10. Bd3 {[%emt 0:01:36]} h6 {[%emt 0:11:52]} 11. O-O {[%emt 0:01:19]} O-O {[%emt 0:04:51]} 12. Qe2 {[%emt 0:03:06]} Bd7 {[%emt 0:03:04]} 13. Qe4 {[%emt 0:08:40]} f5 {[%emt 0:00:18]} 14. Qe2 {[%emt 0:00:25]} Qf6 {[%emt 0:01:32]} 15. Re1 {[%emt 0:02:19]} Bc7 {[%emt 0:10:56]} 16. Rb1 {[%emt 0:13:26]} Rab8 {[%emt 0:00:31]} 17. Ba3 {[%emt 0:03:56]} Rfe8 {[%emt 0:00:20]} 18. Ne5 {[%emt 0:04:20]} Nxe5 {[%emt 0:00:21]} 19. dxe5 {[%emt 0:00:06]} Qh4 {[%emt 0:01:52]} 20. Rb4 {[%emt 0:02:44]} Qg5 {[%emt 0:01:53]} 21. Bc1 {[%emt 0:05:46]} Qe7 {[%emt 0:03:01]} 22. Ba3 {[%emt 0:08:36]} Qg5 {[%emt 0:08:25]} 23. Bc1 {[%emt 0:00:40]} Qg6 {[%emt 0:01:13]} 24. h3 {[%emt 0:08:49]} Bc6 {[%emt 0:03:26]} 25. Rg4 {[%emt 0:07:49]} Qf7 {[%emt 0:11:52]} 26. Rg3 {[%emt 0:02:08]} Kh8 {[%emt 0:01:24]} 27. Bc2 {[%emt 0:02:52]} Rbd8 {[%emt 0:01:02]} 28. f4 {[%emt 0:01:48]} Ba5 {[%emt 0:01:33]} 29. Ba3 {[%emt 0:02:00]} Bd5 {[%emt 0:03:21]} 30. Ba4 {[%emt 0:00:42]} Rg8 {[%emt 0:01:08]} 31. Bd6 {[%emt 0:04:18]} Rc8 {[%emt 0:00:20]} 32. Rc1 {[%emt 0:02:09]} Bc4 {[%emt 0:00:20]} 33. Qd2 {[%emt 0:01:22]} b5 {[%emt 0:00:27]} 34. Bb3 {[%emt 0:01:23]} Qb7 {[%emt 0:00:11]} 35. Kh2 {[%emt 0:00:49]} Bb6 {[%emt 0:01:05]} 36. Bd1 {[%emt 0:00:33]} a6 {[%emt 0:02:14]} 37. Bf3 {[%emt 0:01:06]} Qa7 {[%emt 0:00:06]} 38. Rc2 {[%emt 0:01:02]} Be3 {[%emt 0:00:59]} 39. Qe1 {[%emt 0:01:16]} Bxf4 {[%emt 0:00:21]} 40. Kh1 {[%emt 0:00:33]} Bxg3 {[%emt 0:17:43]} 41. Qxg3 {[%emt 0:15:02]} Qe3 {[%emt 0:01:26]} 42. Qf2 {[%emt 0:00:00]} Qxf2 {[%emt 0:00:00]} 43. Rxf2 {[%emt 0:00:00]} Bd3 {[%emt 0:00:00]} 44. Bb4 {[%emt 0:00:00]} Be4 {[%emt 0:00:00]} 45. Bh5 {[%emt 0:00:00]} g6 {[%emt 0:00:00]} 46. Bd1 {[%emt 0:00:00]} Rgd8 {[%emt 0:00:00]} 47. Bb3 {[%emt 0:00:00]} Bd5 {[%emt 0:00:00]} 48. Ba5 {[%emt 0:00:00]} Rd7 {[%emt 0:00:00]} 49. Rd2 {[%emt 0:00:00]} Kg7 {[%emt 0:00:00]} 50. Kg1 {[%emt 0:00:00]} Kf7 {[%emt 0:00:00]} 51. Bd1 {[%emt 0:00:39]} Ke8 {[%emt 0:00:00]} 52. a3 {[%emt 0:00:48]} Be4 {[%emt 0:00:00]} 53. Rd6 {[%emt 0:00:53]} Rxd6 {[%emt 0:00:00]} 54. exd6 {[%emt 0:00:02]} Kd7 {[%emt 0:00:00]} 55. Bc7 {[%emt 0:00:28]} Rxc7 {[%emt 0:00:56]} 56. dxc7 {[%emt 0:00:06]} Kxc7 {[%emt 0:00:08]} 57. g3 {[%emt 0:00:44]} e5 {[%emt 0:00:34]} 58. Bb3 {[%emt 0:00:47]} Kd6 {[%emt 0:00:30]} 59. Kf2 {[%emt 0:00:57]} f4 {[%emt 0:00:08]} 60. a4 {[%emt 0:01:17]} bxa4 {[%emt 0:00:38]} 61. Bxa4 {[%emt 0:00:01]} Kc5 {[%emt 0:02:02]} 62. Bb3 {[%emt 0:00:13]} g5 {[%emt 0:01:18]} 63. Ba2 {[%emt 0:01:03]} a5 {[%emt 0:00:43]} 64. h4 {[%emt 0:00:31]} a4 {[%emt 0:00:23]} 65. hxg5 {[%emt 0:00:10]} hxg5 {[%emt 0:00:08]} 66. gxf4 {[%emt 0:00:24]} exf4 {[%emt 0:00:40]} 67. Ke2 {[%emt 0:00:24]} g4 {[%emt 0:00:23]} 68. Be6 {[%emt 0:00:14]} g3 {[%emt 0:00:10]} 69. Kf1 {[%emt 0:00:32]} f3 {[%emt 0:00:19]} 70. Bf7 {[%emt 0:00:47]} Bd3+ {[%emt 0:00:14]} 71. Kg1 {[%emt 0:00:35]} f2+ {[%emt 0:00:06]} 0-1

[Event "CZE-ch Open 2018"]
[Site "Ostrava"]
[Date "2018.05.03"]
[Round "6"]
[White "Malinovsky, Petr"]
[Black "Kolar, Stanislav"]
[Result "1-0"]
[ECO "E47"]
[WhiteElo "2006"]
[BlackElo "2091"]
[Annotator "NA"]
[PlyCount "47"]
[EventDate "2018.??.??"]
[EventCountry "CZE"]
[SourceTitle "playchess.com"]
[Source "ChessBase"]
[SourceQuality "1"]
[TimeControl "40/5400+30:900+30"]

1. d4 {[%emt 0:09:50]} Nf6 {[%emt 0:00:19]} 2. c4 {[%emt 0:00:48]} e6 {[%emt 0:00:05]} 3. Nc3 {[%emt 0:00:11]} Bb4 {[%emt 0:00:06]} 4. e3 {[%emt 0:00:34]} O-O {[%emt 0:00:13]} 5. Bd3 {[%emt 0:00:10]} c5 {[%emt 0:00:22]} 6. Nge2 {[%emt 0:00:09]} Nc6 {[%emt 0:00:48]} 7. O-O {[%emt 0:00:59]} d5 {[%emt 0:00:17]} 8. a3 {[%emt 0:01:29]} Bxc3 {[%emt 0:01:07]} 9. bxc3 {[%emt 0:00:25]} b6 {[%emt 0:01:41]} 10. cxd5 {[%emt 0:03:40]} exd5 {[%emt 0:00:21]} 11. f3 {[%emt 0:12:27]} Re8 {[%emt 0:00:51]} 12. Ng3 {[%emt 0:01:05]} a6 {[%emt 0:08:57]} 13. Re1 {[%emt 0:03:51]} Ra7 {[%emt 0:00:25]} 14. Ra2 {[%emt 0:07:18]} Rae7 {[%emt 0:02:59]} 15. Rae2 {[%emt 0:00:45]} h5 {[%emt 0:02:01]} 16. Kh1 {[%emt 0:09:56]} g6 {[%emt 0:00:59]} 17. e4 {[%emt 0:05:45]} dxe4 {[%emt 0:03:24]} 18. Nxe4 {[%emt 0:02:01]} Nxe4 {[%emt 0:01:09]} 19. Bxe4 {[%emt 0:00:32]} Qd7 {[%emt 0:11:12]} 20. Bg5 {[%emt 0:02:07]} f6 {[%emt 0:02:56]} 21. Bxf6 {[%emt 0:02:04]} Re6 {[%emt 0:00:37]} 22. Bxg6 {[%emt 0:05:54]} Rxe2 {[%emt 0:00:12]} 23. Rxe2 {[%emt 0:00:15]} Rf8 {[%emt 0:00:24]} 24. Qb3+ {[%emt 0:00:53]} 1-0